Workbook

Sheet Base
B1: FONCTION DE RECHERCHE:RECHERCHEV
A2: Référence | B2: Désignation | C2: PRIX | D2: Stock | E2: Benefice | F2: Prix de revient | G2: Prix d'achat FCFA | H2: Prix d'achat € $ | I2: Valeur € | J2: Valeur $ | K2: Frais transi
A3: HA33S | B3: ALARME AUTONOME HA33S | C3: =F3*1.25 -> 148250 | D3: 1 | E3: =C3-F3 -> 29650 | F3: =G3+K3 -> 118600 | G3: =H3*I3*J3 -> 78600 | H3: 120 | I3: 655 | J3: 1 | K3: 40000
A4: SC84 | B4: ALARME AUTONOME IR SC84 | C4: =F4*1.25 -> 76962.5 | D4: 2 | E4: 15392.5 | F4: 61570 | G4: 61570 | H4: 94 | I4: 655 | J4: 1 | K4: 0
A5: ALC003 | B5: ALARME CENTRALE | C5: =F5*1.5 -> 0 | D5: 10 | E5: 0 | F5: 0 | G5: 0 | H5: 0 | I5: 0 | J5: 0 | K5: 0
A6: ALC004 | B6: ALARME CENTRALE | C6: 0 | D6: 20 | E6: 0 | F6: 0 | G6: 0 | H6: 0 | I6: 0 | J6: 0
A7: CM005 | B7: CAMERA | C7: 0 | D7: 40 | E7: 0 | F7: 0 | G7: 0
A8: CM006 | B8: CAMERA | C8: 0 | D8: 75 | E8: 0 | F8: 0 | G8: 0
A9: CM007 | B9: CAMERA | C9: 0 | D9: 5 | E9: 0 | F9: 0 | G9: 0
A10: HKV2032 | B10: CAMERA 120 WDR | C10: 138240 | D10: 4 | E10: 46080 | F10: 92160 | G10: 42160 | H10: 68 | I10: 1 | J10: 620 | K10: 50000
A11: HKV2042 | B11: CAMERA -IW 120 WDR | C11: 152310 | D11: 2 | E11: 50770 | F11: 101540 | G11: 41540 | H11: 67 | I11: 1 | J11: 620 | K11: 60000
A12: HKV2542 | B12: CAMERA -IWS 120db | C12: 179280 | D12: 8 | E12: 59760 | F12: 119520 | G12: 59520 | H12: 96 | I12: 1 | J12: 620 | K12: 60000
A13: HKV7108 | B13: ENREGISTREUR | C13: 194160 | D13: 4 | E13: 64720 | F13: 129440 | G13: 69440 | H13: 112 | I13: 1 | J13: 620 | K13: 60000
A14: HKV012 | B14: CAMERA | C14: 0 | D14: 4 | E14: 0 | F14: 0 | G14: 0
A15: HKV013 | B15: CAMERA | C15: 0 | D15: 5 | E15: 0 | F15: 0 | G15: 0 | H15: 0 | I15: 0 | J15: 0
A16: CS50 | B16: CARTE FREQUENCE S50 | C16: 1950 | D16: 8 | E16: 650 | F16: 1300 | G16: 300 | H16: 0.5 | I16: 1 | J16: 600 | K16: 1000
A17: CS70 | B17: CARTE FREQUENCE S70 | C17: 2130 | D17: 7 | E17: 710 | F17: 1420 | G17: 420 | H17: 0.7 | I17: 1 | J17: 600 | K17: 1000
A18: CF016 | B18: CARTE FREQUENCE | C18: 0 | D18: 22 | E18: 0 | F18: 0 | G18: 0
A19: RFID01 | B19: CLAVIER DIGICODE RFID ACCES | C19: =F19*1.25 -> 62500 | D19: 2 | E19: 12500 | F19: 50000 | G19: 50000 | H19: 50000 | I19: 1 | J19: 1
E21: 12500

Sheet FACTURIER
A5: Code | B5: =CONCATENATE(B6,E7) -> AZIZEFT0133
A6: Client | B6: AZIZE | D6: Date: | E6: =TODAY() -> 42780
A7: Adresse | D7: FACTURE | E7: FT0133
A8: Contact
A10: Référence | B10: Désignation | C10: Qté | D10: Prix unitaire | E10: Montant total
A11: RFID01 | B11: =VLOOKUP(A11,[1]Base!A3:D200,2,FALSE) -> CLAVIER DIGICODE RFID ACCES | C11: 2 | D11: =VLOOKUP(A11,[2]Base!A3:D200,3,FALSE) -> 62500 | E11: =C11*D11 -> 125000
A12: SC84 | B12: =VLOOKUP(A12,[1]Base!A3:D201,2,FALSE) -> ALARME AUTONOME IR SC84 | C12: 1 | D12: =VLOOKUP(A12,[2]Base!A4:D201,3,FALSE) -> 76962.5 | E12: 76962.5
A13: CF016 | B13: =VLOOKUP(A13,[1]Base!A3:D202,2,FALSE) -> CARTE FREQUENCE | C13: 1 | D13: =VLOOKUP(A13,[2]Base!A3:D202,3,FALSE) -> 0 | E13: 0
A14: HKV2032 | B14: =VLOOKUP(A14,[1]Base!A3:D203,2,FALSE) -> CAMERA HKV DS-2CD2032F-IW 120 WDR | C14: 3 | D14: =VLOOKUP(A14,[2]Base!A4:D203,3,FALSE) -> 138240 | E14: 414720
A15: HKV2042 | B15: =VLOOKUP(A15,[1]Base!A3:D204,2,FALSE) -> CAMERA HKV DS-2CD2042WD-IW 120 WDR | C15: 3 | D15: =VLOOKUP(A15,[2]Base!A3:D204,3,FALSE) -> 152310 | E15: 456930
D19: Main d'œuvre | E19: 45000
D21: Total HT | E21: =SUM(E11:E20) -> 1118612.5
C22: 0 | D22: TVA | E22: =IF(C22>0,E21*0.18,0) -> 0
D23: Acompte | E23: 0
D24: Net a payer | E24: =IF(E23>0,(E21+E22)-E23,E21+E22) -> 1118612.5
